bitfinex/quotes_SOLUSD_20251127
["timestamp","ask_amount","ask_price","bid_price","bid_amount"]
[1764264311702,3.1,142.29,142.28,43.34599096]
[1764264312198,3.1,142.29,142.28,42.63599096]
[1764264312701,3.1,142.29,142.28,43.34599096]
[1764264313701,3.1,142.29,142.28,42.63599096]
[1764264317401,3.76,142.29,142.24,7.7359395]
[1764264317693,0.66,142.28,142.23,8.75826578]
[1764264317898,0.66,142.28,142.24,16.308864]
[1764264317899,7.68876077,142.28,142.24,16.308864]
[1764264318291,0.66,142.27,142.24,16.308864]
[1764264320509,0.66,142.27,142.25,7.02987697]
[1764264323977,7.68894034,142.27,142.22,1.72774547]
[1764264324379,0.66,142.26,142.22,1.72774547]
[1764264324585,3.1,142.25,142.22,18.03660947]
[1764264324991,0.66,142.24,142.23,16.308864]
[1764264325379,0.66,142.24,142.23,23.33964215]
[1764264325789,3.1,142.25,142.23,25.77738762]
[1764264325988,3.1,142.25,142.24,2.43774547]
[1764264326583,1e-08,142.33,142.28,16.308864]
[1764264326783,3.76,142.32,142.3,1.72774547]
[1764264327200,0.66,142.31,142.3,1.72774547]
[1764264327712,0.66,142.31,142.3,8.75515235]
[1764264328507,3.76,142.32,142.3,8.75515235]
[1764264328813,3.76,142.32,142.31,1.72774547]
[1764264329811,3.76,142.32,142.31,8.75465854]
[1764264330585,1e-08,142.33,142.31,8.75465854]
[1764264330785,0.66000001,142.33,142.31,7.02691307]
[1764264331101,3.1,142.32,142.31,7.02691307]
[1764264332112,3.1,142.32,142.31,8.75465854]
[1764264332611,1e-08,142.33,142.31,11.19240401]
[1764264332815,1e-08,142.33,142.32,2.43774547]
[1764264334212,1e-08,142.33,142.32,25.7730288]
[1764264337108,1e-08,142.33,142.32,24.04528333]
[1764264337321,1e-08,142.33,142.32,25.7730288]
[1764264343104,1e-08,142.33,142.32,24.04528333]
[1764264343315,1e-08,142.33,142.32,25.7730288]
[1764264345414,1e-08,142.33,142.32,25.0630288]
[1764264345616,1e-08,142.33,142.32,25.7730288]
[1764264352415,1e-08,142.33,142.32,24.04528333]
[1764264352617,1e-08,142.33,142.32,25.0630288]
[1764264354533,0.67000001,142.33,142.32,7.02641933]
[1764264354835,0.67000001,142.33,142.32,25.0630288]
[1764264355135,1e-08,142.33,142.32,25.0630288]
[1764264355719,1e-08,142.33,142.32,8.7541648]
[1764264356115,0.67000001,142.33,142.32,25.0630288]
[1764264357637,1e-08,142.33,142.32,25.0630288]
[1764264358028,1e-08,142.33,142.32,25.7730288]
[1764264360426,1e-08,142.33,142.32,25.0630288]
[1764264361328,1e-08,142.33,142.32,35.28561565]
[1764264361531,1e-08,142.33,142.32,18.97675165]
[1764264364520,1e-08,142.33,142.32,19.94457635]
[1764264367146,1e-08,142.33,142.32,10.42463143]
[1764264367147,0.67000001,142.33,142.32,10.42463143]
[1764264367329,0.67000001,142.33,142.31,7.02663744]
[1764264367648,0.67000001,142.33,142.31,9.72220761]
[1764264367948,0.67000001,142.33,142.32,19.00443417]
[1764264369743,0.67000001,142.33,142.32,26.0308535]
[1764264369922,0.67000001,142.33,142.32,23.33528333]
[1764264371358,0.67000001,142.33,142.32,16.308864]
[1764264371528,3.77000001,142.33,142.3,19.00443417]
[1764264371733,3.77000001,142.33,142.32,16.308864]
[1764264372042,3.10000001,142.33,142.32,16.308864]
[1764264372446,3.79000001,142.33,142.32,16.308864]
[1764264374532,3.79000001,142.33,142.32,26.0308535]
[1764264375257,3.79000001,142.33,142.32,23.33528333]
[1764264376853,3.79000001,142.33,142.32,26.0308535]
[1764264380434,0.69000001,142.33,142.32,26.0308535]
[1764264380634,3.79000001,142.33,142.32,26.0308535]
[1764264387741,3.79000001,142.33,142.32,23.33528333]
[1764264392462,3.79000001,142.33,142.32,16.308864]
[1764264392663,13.51149584,142.33,142.28,2.69557017]
[1764264392867,0.69,142.32,142.27,9.7244589]
[1764264393448,7.71656807,142.32,142.29,16.308864]
[1764264393739,7.71656807,142.32,142.28,7.02820768]
[1764264393942,0.69,142.31,142.29,16.308864]
[1764264394560,3.1,142.3,142.29,23.33657628]
[1764264394863,3.1,142.3,142.29,26.03214645]
[1764264397347,3.79,142.3,142.29,26.03214645]
[1764264397857,3.1,142.3,142.29,26.03214645]
[1764264399165,3.79,142.3,142.29,26.03214645]
[1764264401770,3.1,142.3,142.29,26.03214645]
[1764264402775,3.1,142.3,142.29,26.71214645]
[1764264403074,3.1,142.3,142.29,44.28189836]
[1764264404778,1000.0,142.32,142.29,44.28189836]
[1764264404952,3.1,142.31,142.29,41.58632819]
[1764264405158,3.1,142.31,142.3,2.69557017]
[1764264406583,3.1,142.31,142.3,9.72297705]
[1764264407576,1000.0,142.32,142.3,13.09854722]
[1764264407781,1000.0,142.32,142.31,6.07114034]
[1764264408283,1000.71,142.32,142.31,2.69557017]
[1764264408683,1000.71,142.32,142.31,26.03134724]
[1764264410864,1000.0,142.32,142.31,26.03134724]
[1764264411464,1003.1,142.32,142.31,26.03134724]
[1764264411662,1000.0,142.32,142.31,26.03134724]
[1764264411868,1003.1,142.32,142.31,26.03134724]
[1764264412176,1003.81,142.32,142.31,26.03134724]
[1764264412574,1000.71,142.32,142.31,26.03134724]
[1764264412773,1003.81,142.32,142.31,26.03134724]
[1764264412970,1000.71,142.32,142.31,26.03134724]
[1764264413171,1003.81,142.32,142.31,26.03134724]
[1764264414085,1000.71,142.32,142.31,26.03134724]
[1764264414286,1003.81,142.32,142.31,26.03134724]
[1764264419766,1003.81,142.32,142.27,21.9453205]
[1764264419989,0.71,142.31,142.28,9.72396488]
[1764264420382,0.71,142.31,142.3,16.308864]
[1764264420578,0.71,142.31,142.27,13.39473008]
[1764264421099,0.71,142.31,142.28,16.308864]
[1764264421869,0.71,142.31,142.29,16.308864]
[1764264421870,7.73711119,142.31,142.29,16.308864]
[1764264422281,0.71,142.3,142.29,16.308864]
[1764264422493,0.71,142.3,142.26,2.69557017]
[1764264422675,3.1,142.29,142.28,16.308864]
[1764264423188,3.81,142.29,142.28,16.308864]
[1764264423987,1002.69557017,142.32,142.28,19.00443417]
[1764264423988,1000.0,142.32,142.28,19.00443417]
[1764264424173,0.71,142.3,142.28,26.03282888]
[1764264424689,0.71,142.3,142.29,2.69557017]
[1764264426297,0.71,142.3,142.28,26.03282888]
[1764264426592,0.71,142.3,142.28,18.03594079]
[1764264426889,0.71,142.3,142.28,25.06431363]
[1764264428300,3.1,142.29,142.28,25.06431363]
[1764264428497,0.71,142.3,142.28,25.06431363]
[1764264428697,3.1,142.29,142.28,25.06431363]
[1764264429210,3.81,142.29,142.28,25.06431363]
[1764264429803,0.71,142.29,142.28,25.06431363]
[1764264430181,3.81,142.29,142.28,25.06431363]
[1764264430797,3.1,142.29,142.28,25.06431363]
[1764264431226,1000.0,142.32,142.28,43.30530041]
[1764264431405,3.1,142.31,142.29,0.67]
[1764264432404,3.78,142.31,142.28,40.90822362]
[1764264432588,3.78,142.31,142.3,1.72707679]
[1764264432782,3.78,142.31,142.28,41.57822362]
[1764264432990,3.78,142.31,142.29,1.72707679]
[1764264432991,0.68,142.3,142.29,1.72707679]
[1764264433189,3.1,142.31,142.29,1.72707679]
[1764264433512,3.78,142.31,142.29,1.72707679]
[1764264433688,3.1,142.31,142.29,1.72707679]
[1764264433893,0.68,142.3,142.29,1.72707679]
[1764264435382,0.68,142.3,142.29,8.75497755]
[1764264438802,0.68,142.3,142.28,25.06407649]
[1764264439008,3.1,142.29,142.28,23.3369997]
[1764264439201,3.1,142.29,142.28,25.06407649]
[1764264439581,1000.0,142.32,142.28,43.30506327]
[1764264439789,3.1,142.31,142.28,41.57798648]
[1764264440199,3.78,142.31,142.28,41.57798648]
[1764264440409,3.1,142.31,142.28,41.57798648]
[1764264440704,3.1,142.31,142.3,1.72707679]
[1764264441814,3.1,142.31,142.3,8.75448367]
[1764264441991,1000.68,142.32,142.3,8.75448367]
[1764264442191,3.1,142.31,142.3,7.02740688]
[1764264443307,3.1,142.31,142.3,8.75448367]
[1764264443913,3.1,142.31,142.3,19.96150538]
[1764264444313,3.1,142.31,142.3,41.06819971]
[1764264444489,3.1,142.31,142.3,39.34112292]
[1764264444813,3.1,142.31,142.3,39.19441493]
[1764264445187,3.1,142.31,142.3,9.27777568]
[1764264450192,3.1,142.31,142.3,30.38595509]
[1764264450405,3.1,142.31,142.3,28.6588783]
[1764264450714,1000.0,142.32,142.3,9.27777568]
[1764264451005,3.1,142.31,142.3,7.55069889]
[1764264451218,1000.0,142.32,142.3,7.55069889]
[1764264451410,3.1,142.31,142.3,7.55069889]
[1764264451788,3.1,142.31,142.3,6.88069889]
[1764264452014,3.1,142.31,142.3,30.38595509]
[1764264452401,1000.0,142.32,142.3,9.27777568]
[1764264452710,1000.0,142.32,142.3,7.55069889]
[1764264452919,1000.0,142.32,142.3,28.6588783]
[1764264453215,3.1,142.31,142.3,7.55069889]
[1764264453417,3.1,142.31,142.3,28.6588783]
[1764264453731,3.1,142.31,142.3,8.60777568]
[1764264453913,1000.0,142.32,142.3,9.27777568]
[1764264454097,3.1,142.31,142.3,28.6588783]
[1764264454302,1000.0,142.32,142.3,28.6588783]
[1764264454303,1000.0,142.32,142.3,7.55069889]
[1764264454496,3.1,142.31,142.3,6.88069889]
[1764264454892,1000.0,142.32,142.3,6.88069889]
[1764264455106,3.1,142.31,142.3,6.88069889]
[1764264455305,1000.0,142.32,142.3,8.60777568]
[1764264455514,1000.68,142.32,142.31,1.72707679]
[1764264456015,1003.78,142.32,142.31,1.72707679]
[1764264456211,1003.1,142.32,142.31,1.72707679]
[1764264456394,1003.1,142.32,142.31,25.06285386]
[1764264460418,1003.79,142.32,142.31,23.33577707]
[1764264460622,1003.79,142.32,142.31,25.06285386]
[1764264461798,1003.1,142.32,142.31,25.75285386]
[1764264461998,1003.1,142.32,142.31,25.06285386]
[1764264462198,1003.79,142.32,142.31,25.06285386]
[1764264469125,1000.69,142.32,142.31,25.06285386]
[1764264469313,1003.79,142.32,142.31,25.06285386]
[1764264470605,1003.1,142.32,142.31,25.75285386]
[1764264471036,1003.1,142.32,142.31,25.06285386]
[1764264475012,1003.79,142.32,142.31,25.06285386]
[1764264478617,1003.79,142.32,142.3,7.0271139]
[1764264478934,0.69,142.31,142.28,7.02839471]
[1764264479112,3.1,142.3,142.29,16.308864]
[1764264479511,3.1,142.3,142.28,7.02839471]
[1764264479726,0.69,142.29,142.28,7.02839471]
[1764264480530,0.69,142.29,142.26,8.75645961]
[1764264480833,0.69,142.29,142.26,24.60283987]
[1764264480834,3.1,142.28,142.26,24.60283987]
[1764264481019,3.1,142.28,142.27,1.72707679]
[1764264481826,3.79,142.28,142.27,1.72707679]
[1764264482226,3.79,142.28,142.26,26.32991666]
[1764264482426,3.79,142.28,142.26,24.60283987]
[1764264482427,0.69,142.27,142.26,24.60283987]
[1764264482932,0.69,142.27,142.26,42.63878066]
[1764264487244,0.69,142.27,142.26,40.91170387]
[1764264487418,0.69,142.27,142.26,42.63878066]
[1764264488534,0.69,142.27,142.26,43.6106627]
[1764264489023,0.69,142.27,142.26,23.33824682]
[1764264489229,0.69,142.27,142.26,26.03720565]
[1764264490026,3.1,142.27,142.26,43.6106627]
[1764264490748,3.81,142.27,142.26,43.6106627]
[1764264496750,3.81,142.27,142.26,23.33824682]
[1764264497451,3.81,142.27,142.25,7.02970121]
[1764264497654,0.71,142.26,142.25,23.33856521]
[1764264498631,0.71,142.26,142.25,26.03752404]
[1764264500453,3.81,142.26,142.23,3.67182258]
[1764264500656,3.81,142.26,142.22,2.69895883]
[1764264500863,0.71,142.25,142.24,16.308864]
[1764264502073,0.71,142.25,142.21,7.03162283]
[1764264502074,3.81,142.25,142.21,7.03162283]
[1764264502364,3.81,142.25,142.22,16.308864]
[1764264502534,0.71,142.24,142.23,16.308864]
[1764264504139,7.7403712,142.24,142.21,16.308864]
[1764264504543,0.71,142.23,142.22,16.308864]
[1764264506047,0.71,142.23,142.2,26.03985036]
[1764264506283,3.1,142.22,142.2,23.34089153]
[1764264506433,0.71,142.23,142.2,26.03985036]
[1764264506641,3.81,142.22,142.2,26.03985036]
[1764264506839,0.71,142.22,142.2,26.03985036]
[1764264507035,3.81,142.21,142.18,2.69895883]
[1764264507259,0.71,142.21,142.18,2.69895883]
[1764264507567,3.81,142.2,142.19,16.308864]
[1764264509641,3.81,142.2,142.15,3.77406192]
[1764264509860,0.71,142.19,142.17,16.308864]
[1764264510873,5.79895883,142.18,142.15,0.1]
[1764264511044,2.69895883,142.18,142.15,0.1]
[1764264511243,0.62,142.17,142.15,0.1]
[1764264511439,3.1,142.16,142.15,0.1]
[1764264511842,3.72,142.16,142.15,0.1]
[1764264512161,9.73237783,142.18,142.15,0.1]
[1764264512355,0.62,142.21,142.17,2.69895883]
[1764264512562,3.1,142.2,142.17,2.69895883]
[1764264512754,3.72,142.2,142.17,3.40895883]
[1764264513068,3.72,142.2,142.17,2.69895883]
[1764264513377,3.72,142.2,142.16,17.018864]
[1764264513537,0.62,142.19,142.16,2.69895883]
[1764264513740,0.62,142.19,142.16,3.40895883]
[1764264514149,0.62,142.19,142.16,10.44327601]
[1764264516665,0.62,142.19,142.16,7.74431718]
[1764264516968,0.62,142.19,142.16,10.44327601]
[1764264517946,0.62,142.19,142.17,2.69895883]
[1764264518148,3.1,142.2,142.18,2.69895883]
[1764264518344,3.72,142.2,142.17,9.73276289]
[1764264519068,3.1,142.19,142.17,9.73276289]
[1764264519247,3.1,142.19,142.17,7.03380406]
[1764264520163,3.1,142.19,142.17,9.73276289]
[1764264521292,3.1,142.18,142.17,9.73276289]
[1764264521656,3.1,142.18,142.17,7.03380406]
[1764264522156,3.1,142.18,142.17,9.73276289]
[1764264523749,3.1,142.18,142.17,7.03380406]
[1764264523948,3.1,142.18,142.17,9.73276289]
[1764264524655,3.1,142.18,142.17,10.45276289]
[1764264524861,3.1,142.18,142.17,30.73630355]
[1764264525170,3.1,142.18,142.17,28.03734472]
[1764264525575,3.1,142.18,142.17,16.308864]
[1764264525576,3.72,142.18,142.17,16.308864]
[1764264525749,3.1,142.18,142.17,16.308864]
[1764264525947,3.72,142.18,142.17,16.308864]
[1764264526376,3.1,142.18,142.17,16.308864]
[1764264526576,3.72,142.18,142.15,3.51895883]
[1764264526745,3.72,142.18,142.16,16.308864]
[1764264526948,0.62,142.17,142.15,0.1]
[1764264527478,3.31895883,142.17,142.15,0.1]
[1764264527651,11.79322689,142.16,142.15,0.1]
[1764264527853,2.69895883,142.15,142.14,0.1]
[1764264528047,5.79895883,142.15,142.14,0.1]
[1764264528257,6.31895883,142.15,142.14,0.1]
[1764264528877,13.3537812,142.15,142.14,0.1]
[1764264529076,22.16372612,142.15,142.14,0.1]
[1764264529275,22.44804926,142.15,142.14,0.1]
[1764264529457,25.11880892,142.13,142.12,0.1]
[1764264529658,31.20209089,142.13,142.12,0.1]
[1764264529954,31.72209089,142.13,142.12,0.1]
[1764264530776,35.65790317,142.13,142.12,0.1]
[1764264530983,38.75790317,142.13,142.12,0.1]
[1764264531860,12.31322689,142.13,142.12,0.1]
[1764264532073,22.44903917,142.13,142.12,0.1]
[1764264532258,15.41322689,142.13,142.12,0.1]
[1764264532660,22.44903917,142.13,142.12,0.1]
[1764264533351,19.34903917,142.13,142.12,0.1]
[1764264533576,15.41322689,142.13,142.12,0.1]
[1764264534083,22.44903917,142.13,142.12,0.1]
[1764264535556,25.26862116,142.13,142.12,0.1]
[1764264538874,25.62254907,142.13,142.12,0.1]
[1764264540466,18.82953423,142.12,142.11,0.1]
[1764264540668,19.34953423,142.12,142.11,0.1]
[1764264540864,8.80994492,142.11,142.09,0.1]
[1764264541067,15.36611363,142.11,142.09,0.1]
[1764264541579,11.09426805,142.1,142.09,0.1]
[1764264541787,20.11218571,142.1,142.09,0.1]
[1764264542361,0.28432314,142.07,142.06,0.1]
[1764264542563,21.93201058,142.07,142.06,0.1]
[1764264542775,22.45201058,142.07,142.06,0.1]
[1764264543088,25.27318348,142.07,142.06,0.1]
[1764264546085,22.17318348,142.07,142.06,0.1]
[1764264546262,21.78984901,142.07,142.06,0.1]
[1764264546585,21.93201058,142.07,142.06,0.1]
[1764264546781,5.79895883,142.07,142.06,0.1]
[1764264546988,5.9411204,142.07,142.06,0.1]
[1764264547188,6.08328197,142.07,142.06,0.1]
[1764264548462,21.93201058,142.07,142.06,0.1]
[1764264550684,20.96684189,142.07,142.06,0.1]
[1764264553676,21.48684189,142.07,142.06,0.1]
[1764264554505,20.96684189,142.07,142.06,0.1]
[1764264555281,21.48684189,142.07,142.06,0.1]
[1764264555673,20.96684189,142.07,142.06,0.1]
[1764264563381,0.35392791,142.08,142.06,0.76]
[1764264563574,3.1,142.07,142.06,0.76]
[1764264565280,4.83379014,142.07,142.06,0.1]
[1764264565483,4.83379014,142.07,142.06,0.76]
[1764264565677,4.83379014,142.07,142.06,0.1]
[1764264566091,5.18771805,142.07,142.06,0.1]
[1764264566401,12.22650174,142.07,142.06,0.1]
[1764264568497,21.8407698,142.07,142.06,0.1]
[1764264568694,21.3207698,142.07,142.06,0.1]
[1764264569798,21.8407698,142.07,142.06,0.1]
[1764264570411,3.1,142.07,142.06,0.76]
[1764264574120,3.1,142.07,142.06,0.69]
[1764264576325,3.45392791,142.07,142.06,0.69]
[1764264577816,5.70771805,142.07,142.06,0.03]
[1764264577995,12.22650174,142.07,142.06,0.03]
[1764264578197,5.70771805,142.07,142.06,0.03]
[1764264578405,5.18771805,142.07,142.06,0.03]
[1764264579217,5.70771805,142.07,142.06,0.03]
[1764264579618,12.74650174,142.07,142.06,0.03]
[1764264580891,5.18771805,142.07,142.06,0.03]
[1764264581286,5.18771805,142.07,142.06,0.69]
[1764264582098,3.45392791,142.07,142.06,0.69]
[1764264582302,3.1,142.07,142.06,0.69]
[1764264583598,7.39201519,142.09,142.06,0.69]
[1764264583799,3.1,142.07,142.06,0.69]
[1764264588394,3.45392791,142.07,142.06,0.69]
[1764264589898,3.1,142.07,142.06,7.72927917]
[1764264593331,3.1,142.07,142.06,0.69]
[1764264594114,3.1,142.07,142.06,7.72927917]
[1764264594632,3.1,142.07,142.06,0.69]
[1764264596217,3.1,142.07,142.06,7.72927917]
[1764264597035,2.08771805,142.09,142.06,7.72927917]
[1764264597334,2.08771805,142.09,142.07,0.66]
[1764264597335,3.1,142.08,142.07,0.66]
[1764264600840,0.35392791,142.09,142.07,0.66]
[1764264601014,3.1,142.08,142.07,0.66]
[1764264607538,3.1,142.08,142.07,7.69867804]
[1764264608113,0.35392791,142.11,142.07,7.69867804]
[1764264608314,1.73379014,142.09,142.06,0.69]
[1764264608517,1.73379014,142.08,142.06,0.69]
[1764264608716,3.1,142.07,142.06,0.69]
[1764264609444,3.1,142.07,142.06,0.03]
[1764264609645,14.51766297,142.07,142.06,0.03]
[1764264609824,7.03977472,142.05,142.03,0.1]
[1764264610028,10.8280582,142.04,142.03,0.1]
[1764264610238,12.56184834,142.04,142.03,0.1]
[1764264610443,13.08184834,142.04,142.03,0.1]
[1764264611648,16.18184834,142.04,142.03,0.1]
[1764264612144,23.22211868,142.04,142.03,0.1]
[1764264612641,25.17715184,142.04,142.03,0.1]
[1764264612856,41.48601584,142.04,142.03,1e-08]
[1764264613153,27.40313205,142.02,142.01,0.2]
[1764264613442,27.40313205,142.02,141.99,0.1]
[1764264613443,2.28432313,142.01,141.99,0.1]
[1764264613624,8.61562985,142.01,141.99,0.1]
[1764264613820,20.24794203,142.01,141.99,0.1]
[1764264614026,28.86674737,142.0,141.99,0.1]
[1764264614343,10.80994491,141.99,141.98,0.1]
[1764264614541,14.04125163,141.99,141.98,0.1]
[1764264614844,14.04125163,141.99,141.91,0.1]
[1764264614845,11.61426805,141.98,141.91,0.1]
[1764264615036,11.61426805,141.98,141.91,0.76]
[1764264615037,2.71130672,141.92,141.91,0.76]
[1764264615234,5.81130672,141.92,141.91,0.1]
[1764264615431,5.81130672,141.92,141.91,0.76]
[1764264616732,3.1,141.92,141.91,0.76]
[1764264617534,5.81130672,141.92,141.91,0.1]
[1764264617750,5.81130672,141.92,141.91,0.76]
[1764264618423,5.81130672,141.92,141.91,0.1]
[1764264618865,5.81130672,141.92,141.91,0.76]
[1764264619151,5.81130672,141.92,141.91,0.1]
[1764264619336,5.81130672,141.92,141.91,0.76]
[1764264620744,22.471798,141.92,141.91,0.1]
[1764264620950,38.780662,141.92,141.91,0.1]
[1764264621155,57.08952599,141.92,141.91,0.1]
[1764264621843,54.569526,141.92,141.91,0.1]
[1764264622046,55.089526,141.92,141.91,0.1]
[1764264623857,38.780662,141.92,141.91,0.1]
[1764264624959,40.78066199,141.92,141.91,0.1]
[1764264627063,11.09426805,141.91,141.86,0.66]
[1764264627259,2.71130672,141.87,141.86,0.66]
[1764264627457,5.81130672,141.87,141.86,0.66]
[1764264627644,3.1,141.87,141.86,0.66]
[1764264629644,3.06523463,141.89,141.86,7.70899303]
[1764264629846,3.1,141.88,141.86,7.70899303]
[1764264630047,3.1,141.88,141.87,0.66]
[1764264631866,3.06523463,141.89,141.87,0.66]
[1764264632076,3.1,141.88,141.87,0.66]
[1764264632248,3.1,141.88,141.87,7.70870656]
[1764264632565,3.1,141.88,141.87,10.42001328]
[1764264634261,3.06523463,141.93,141.87,28.04177968]
[1764264634459,3.1,141.92,141.88,3.37130672]
[1764264634954,3.1,141.92,141.89,7.70771301]
[1764264635344,3.1,141.92,141.9,0.66]
[1764264636264,37.20641924,142.02,141.91,2.71130672]
[1764264636453,2.71130672,141.97,141.92,2.71130672]
[1764264636653,3.45392791,141.96,141.92,2.71130672]
[1764264636852,3.45392791,141.96,141.93,0.66]
[1764264637056,6.16523463,141.96,141.93,0.66]
[1764264637666,6.16523463,141.96,141.93,7.70570856]
[1764264638167,3.45392791,141.96,141.94,0.66]
[1764264638367,6.16523463,141.96,141.94,0.66]
[1764264638666,0.35392791,141.96,141.94,0.66]
[1764264638899,23.35112345,142.0,141.94,0.66]
[1764264638900,3.06523463,141.99,141.94,0.66]
[1764264639168,3.06523463,141.99,141.93,7.04570856]
[1764264639169,2.71130672,141.95,141.93,0.66]
[1764264639361,3.45392791,141.94,141.93,0.66]
[1764264639966,6.16523463,141.94,141.92,0.66]
[1764264642374,2.71130672,141.93,141.9,0.66]
[1764264642557,3.06523463,141.92,141.9,0.66]
[1764264642750,3.56523463,141.93,141.9,0.66]
[1764264642954,3.56523463,141.93,141.9,7.70699021]
[1764264643581,3.56523463,141.93,141.91,0.66]
[1764264644760,0.5,141.93,141.91,0.66]
[1764264644955,0.35392791,141.95,141.91,0.66]
[1764264644956,3.1,141.92,141.91,0.66]
[1764264645275,3.1,141.92,141.91,7.70671975]
[1764264645661,3.1,141.92,141.91,0.66]
[1764264646553,3.1,141.92,141.91,7.70671975]
[1764264648655,3.06523463,141.93,141.91,7.70671975]
[1764264648888,2.71130672,141.94,141.92,0.66]
[1764264649064,3.45392791,141.93,141.92,0.66]
[1764264649456,6.16523463,141.93,141.92,0.66]
[1764264651157,3.1,141.93,141.92,7.70622322]
[1764264653682,3.1,141.93,141.92,0.66]
[1764264654600,6.16523463,141.93,141.91,0.66]
[1764264654754,6.16523463,141.93,141.88,27.38004085]
[1764264654952,6.16523463,141.93,141.92,0.66]
[1764264655156,6.16523463,141.93,141.9,7.04689584]
[1764264655658,6.16523463,141.93,141.91,0.66]
[1764264655853,3.1,141.92,141.91,0.66]
[1764264656993,3.1,141.92,141.89,7.04756545]
[1764264657193,5.81130672,141.92,141.89,16.968864]
[1764264657387,2.71130672,141.91,141.89,0.66]
[1764264658183,3.06523463,141.91,141.89,0.66]
[1764264658875,0.35392791,141.91,141.89,0.66]
[1764264659177,3.06523463,141.91,141.89,0.66]
[1764264659377,0.35392791,141.91,141.89,7.70761684]
[1764264659667,3.1,141.9,141.89,10.41892356]
[1764264659884,3.1,141.9,141.89,9.75892356]
[1764264660202,3.1,141.9,141.89,7.04761684]
[1764264660493,0.35392791,141.93,141.89,10.41892356]
[1764264660664,3.1,141.9,141.89,9.75892356]
[1764264660863,3.1,141.9,141.89,27.3782061]
[1764264661292,3.1,141.9,141.89,7.70761684]
[1764264661887,3.1,141.9,141.89,10.41892356]
[1764264664881,3.1,141.9,141.89,0.66]
[1764264665299,3.1,141.9,141.89,7.70771301]
[1764264667177,3.1,141.9,141.87,0.66]
[1764264667377,2.71130672,141.89,141.86,0.66]
[1764264669078,3.06523463,141.91,141.87,7.04870656]
[1764264669273,3.1,141.9,141.87,7.04870656]
[1764264669480,3.1,141.9,141.88,0.66]
[1764264670286,10.11200392,141.91,141.88,0.66]
[1764264670485,3.1,141.9,141.88,0.66]
[1764264672489,0.35392791,141.91,141.88,10.41946478]
[1764264672687,3.1,141.9,141.88,0.66]
[1764264672892,4.83691807,141.9,141.86,7.7589832]
[1764264673095,5.19084598,141.9,141.87,0.71]
[1764264673700,4.83691807,141.9,141.87,0.71]
[1764264673907,4.83691807,141.9,141.87,7.7583168]
[1764264674383,3.1,141.9,141.88,0.71]
[1764264675114,12.4041377,141.9,141.86,7.75907674]
[1764264675409,0.52,141.89,141.85,9.49639084]
[1764264675795,0.52,141.89,141.86,7.75909285]
[1764264676110,12.23824095,141.9,141.86,9.49601092]
[1764264676295,12.75824095,141.9,141.86,9.49601092]
[1764264676805,5.71084598,141.9,141.86,8.78601092]
[1764264677112,3.45392791,141.9,141.87,0.67]
[1764264677903,10.50124966,141.9,141.87,0.67]
[1764264678111,11.02124966,141.9,141.87,0.67]
[1764264678410,10.50124966,141.9,141.87,0.67]
[1764264679609,10.50124966,141.9,141.85,7.04948197]
[1764264679909,2.25691807,141.89,141.85,0.67]
[1764264680096,0.35392791,141.88,141.85,0.67]
[1764264680297,0.35392791,141.88,141.86,0.67]
[1764264681196,0.35392791,141.89,141.86,2.40691807]
[1764264681391,3.45392791,141.9,141.87,1.73691807]
[1764264681591,3.1,141.89,141.88,1.73691807]
[1764264681803,3.1,141.89,141.88,0.67]
[1764264684507,3.1,141.89,141.88,7.71820975]
[1764264684718,3.1,141.89,141.88,9.45512782]